bitfinex/quotes_BTCUSD_20251024
["timestamp","ask_amount","ask_price","bid_price","bid_amount"]
[1761299561228,0.24552146,111440.0,111430.0,0.46638135]
[1761299561428,0.24552146,111440.0,111430.0,0.46438135]
[1761299561620,0.24552146,111440.0,111430.0,0.46538135]
[1761299561821,0.24552146,111440.0,111430.0,0.46438135]
[1761299563043,0.20688774,111440.0,111430.0,0.46438135]
[1761299564700,0.20688774,111440.0,111430.0,0.15852]
[1761299566416,0.20688774,111440.0,111430.0,0.001]
[1761299566747,0.63875038,111440.0,111430.0,0.001]
[1761299567395,0.33288903,111440.0,111430.0,0.001]
[1761299567602,0.42270804,111440.0,111430.0,0.001]
[1761299568240,0.17950098,111420.0,111410.0,0.55148953]
[1761299569626,0.17950098,111420.0,111410.0,0.55348953]
[1761299570804,0.17950098,111420.0,111410.0,0.24862818]
[1761299573290,0.17950098,111420.0,111410.0,0.24762818]
[1761299573464,0.23385101,111420.0,111410.0,0.24762818]
[1761299573668,0.23385101,111420.0,111410.0,0.09106818]
[1761299574075,0.26079345,111420.0,111410.0,0.09006818]
[1761299574436,0.26079345,111420.0,111410.0,0.08806818]
[1761299574903,0.26079345,111420.0,111410.0,0.08906818]
[1761299575142,0.26079345,111420.0,111410.0,0.08806818]
[1761299581830,0.26079345,111420.0,111410.0,0.08806818]
[1761299582224,0.26079345,111420.0,111410.0,0.24562818]
[1761299582528,0.26079345,111420.0,111410.0,0.08806818]
[1761299584869,0.38679474,111420.0,111410.0,0.08806818]
[1761299586578,0.3598523,111420.0,111410.0,0.08806818]
[1761299589226,1.00603079,111420.0,111410.0,0.08806818]
[1761299589379,0.6998523,111420.0,111410.0,0.08806818]
[1761299590760,0.4857117,111400.0,111390.0,0.00274217]
[1761299590927,0.76703222,111400.0,111390.0,0.00274217]
[1761299591268,0.8032145,111400.0,111390.0,0.00274217]
[1761299591557,0.89303351,111400.0,111390.0,0.00274217]
[1761299592011,0.89303351,111400.0,111390.0,0.00279056]
[1761299594332,1.199212,111400.0,111390.0,0.00279056]
[1761299600267,0.89303351,111400.0,111390.0,0.00279056]
[1761299605851,1.199212,111400.0,111390.0,0.00279056]
[1761299606392,0.89303351,111400.0,111390.0,0.00279056]
[1761299608126,1.199212,111400.0,111390.0,0.00279056]
[1761299608678,1.199272,111400.0,111390.0,0.00279056]
[1761299609591,0.73541351,111400.0,111390.0,0.00279056]
[1761299609808,0.89305351,111400.0,111390.0,0.00279056]
[1761299615146,1.199232,111400.0,111390.0,0.00279056]
[1761299616363,1.21857485,111400.0,111390.0,0.00279056]
[1761299619706,1.24552618,111400.0,111390.0,0.00279056]
[1761299620737,1.2696597,111400.0,111390.0,0.00279056]
[1761299621358,0.96348121,111400.0,111390.0,0.00279056]
[1761299621530,1.2696597,111400.0,111390.0,0.00279056]
[1761299622288,1.2696997,111400.0,111390.0,0.00279056]
[1761299624039,0.17958157,111370.0,111360.0,0.025]
[1761299624263,0.21911596,111370.0,111360.0,0.02513041]
[1761299624661,0.21911596,111370.0,111360.0,0.02614466]
[1761299625106,0.17958157,111370.0,111360.0,0.02614466]
[1761299625534,0.17958157,111370.0,111360.0,0.02814466]
[1761299625874,0.17958157,111370.0,111360.0,0.02914466]
[1761299627343,0.30558286,111370.0,111360.0,0.02914466]
[1761299628371,0.30558286,111370.0,111360.0,0.02714466]
[1761299628557,0.39540187,111370.0,111360.0,0.02914466]
[1761299628898,0.39540187,111370.0,111360.0,0.02814466]
[1761299629215,0.39540187,111370.0,111360.0,0.02914466]
[1761299629575,0.39540187,111370.0,111360.0,0.02814466]
[1761299630039,0.39540187,111370.0,111360.0,0.02614466]
[1761299630216,0.39540187,111370.0,111360.0,0.02714466]
[1761299633074,0.70188137,111370.0,111360.0,0.02714466]
[1761299633855,0.70188137,111370.0,111360.0,0.02614466]
[1761299634310,0.70188137,111370.0,111360.0,0.02714466]
[1761299634469,0.70188137,111370.0,111360.0,0.02614466]
[1761299635318,1.04188137,111370.0,111360.0,0.02614466]
[1761299637332,0.73540187,111370.0,111360.0,0.02614466]
[1761299637497,1.04188137,111370.0,111360.0,0.02614466]
[1761299638332,1.04192137,111370.0,111360.0,0.02614466]
[1761299638753,0.73544187,111370.0,111360.0,0.02614466]
[1761299638981,1.04192137,111370.0,111360.0,0.02614466]
[1761299640958,0.73544187,111370.0,111360.0,0.02614466]
[1761299641779,0.73544187,111370.0,111360.0,0.01753693]
[1761299642218,0.89312187,111370.0,111360.0,0.01753693]
[1761299643766,0.73544187,111370.0,111360.0,0.01753693]
[1761299643910,0.89312187,111370.0,111360.0,0.01753693]
[1761299644946,0.73544187,111370.0,111360.0,0.01753693]
[1761299645151,0.89312187,111370.0,111360.0,0.01753693]
[1761299645824,0.73544187,111370.0,111360.0,0.01753693]
[1761299645981,0.89312187,111370.0,111360.0,0.01753693]
[1761299648382,0.55580385,111370.0,111360.0,0.32401643]
[1761299648606,0.67730157,111370.0,111360.0,0.32401643]
[1761299648847,0.67730157,111370.0,111330.0,0.0004]
[1761299648848,0.17962996,111340.0,111330.0,0.0004]
[1761299649060,0.17962996,111340.0,111330.0,0.00054527]
[1761299649061,0.21581224,111340.0,111330.0,0.00054527]
[1761299649286,0.30563125,111340.0,111330.0,0.00054527]
[1761299649521,0.73514366,111340.0,111330.0,0.00155994]
[1761299649950,0.73514366,111340.0,111330.0,0.00455994]
[1761299650186,0.73514366,111340.0,111330.0,0.00155994]
[1761299650392,1.04162316,111340.0,111330.0,0.00155994]
[1761299650603,1.04162316,111340.0,111330.0,0.00255994]
[1761299650808,1.04162316,111340.0,111330.0,0.00155994]
[1761299651450,1.34810266,111340.0,111330.0,0.00155994]
[1761299651672,1.04162316,111340.0,111330.0,0.00155994]
[1761299651892,1.34810266,111340.0,111330.0,0.00155994]
[1761299652120,1.34814266,111340.0,111330.0,0.00155994]
[1761299653901,1.04166316,111340.0,111330.0,0.00155994]
[1761299655921,1.34814266,111340.0,111330.0,0.00155994]
[1761299656357,1.36747247,111340.0,111330.0,1e-08]
[1761299656696,1.37106808,111340.0,111330.0,1e-08]
[1761299657116,1.38106807,111340.0,111330.0,1e-08]
[1761299657336,1.68754757,111340.0,111330.0,1e-08]
[1761299658611,1.69754756,111340.0,111330.0,1e-08]
[1761299658836,1.39106806,111340.0,111330.0,1e-08]
[1761299660070,0.17966223,111320.0,111310.0,0.0004]
[1761299660268,0.17966223,111320.0,111310.0,0.00054508]
[1761299660269,1.15863479,111320.0,111310.0,0.00054508]
[1761299660721,1.1622311,111320.0,111310.0,0.00054508]
[1761299662003,0.5502721,111320.0,111310.0,0.00054508]
[1761299662208,1.1632311,111320.0,111310.0,0.00054508]
[1761299662605,1.1642311,111320.0,111310.0,0.00054508]
[1761299663334,0.68971161,111320.0,111310.0,0.00054508]
[1761299663542,0.8442353,111320.0,111310.0,0.00054508]
[1761299663965,0.5377558,111320.0,111310.0,0.00054508]
[1761299664175,0.8442353,111320.0,111310.0,0.00054508]
[1761299665786,0.8442353,111320.0,111310.0,0.00122174]
[1761299668609,1.1507148,111320.0,111310.0,0.00122174]
[1761299675180,0.8442353,111320.0,111310.0,0.00122174]
[1761299677345,0.9386553,111320.0,111310.0,0.00122174]
[1761299677551,0.8442353,111320.0,111310.0,0.00122174]
[1761299679401,0.5377558,111320.0,111310.0,0.00122174]
[1761299679605,0.8442353,111320.0,111310.0,0.00122174]
[1761299681392,0.86358293,111320.0,111310.0,0.00122174]
[1761299681595,0.00204,111320.0,111310.0,0.48737961]
[1761299681824,0.18170223,111320.0,111310.0,0.48737961]
[1761299682639,0.18070223,111320.0,111310.0,0.48737961]
[1761299682839,0.18070223,111320.0,111310.0,0.68737961]
[1761299683089,0.00104,111320.0,111310.0,0.68737961]
[1761299683680,4e-05,111320.0,111310.0,0.68737961]
[1761299684086,0.17970223,111320.0,111310.0,0.38190011]
[1761299684335,0.17970223,111320.0,111310.0,0.68837961]
[1761299685711,0.21563851,111320.0,111310.0,0.68837961]
[1761299685915,0.17970223,111320.0,111310.0,0.68837961]
[1761299692829,0.17970223,111320.0,111310.0,0.68854602]
[1761299694324,0.17970223,111320.0,111310.0,0.68854602]
[1761299694877,0.17970223,111320.0,111310.0,0.38190011]
[1761299695086,0.17970223,111320.0,111310.0,0.68854602]
[1761299695898,0.17970223,111320.0,111310.0,0.38190011]
[1761299696102,0.17970223,111320.0,111310.0,0.68854602]
[1761299697983,0.17970223,111320.0,111310.0,0.7155082]
[1761299698214,0.17970223,111320.0,111310.0,0.53582983]
[1761299698419,0.17970223,111320.0,111310.0,0.7155082]
[1761299700309,0.17970223,111320.0,111310.0,0.53582983]
[1761299701116,0.17970223,111320.0,111310.0,0.02918392]
[1761299701342,0.21563851,111320.0,111310.0,0.00222174]
[1761299701546,0.21563851,111320.0,111310.0,0.16022174]
[1761299701979,0.17970223,111320.0,111310.0,0.16022174]
[1761299708191,0.17970223,111320.0,111310.0,0.33990011]
[1761299709743,0.17970223,111320.0,111310.0,0.16022174]
[1761299710923,0.17970223,111320.0,111310.0,0.16013317]
[1761299713451,0.17970223,111320.0,111310.0,0.16005317]
[1761299714439,0.17970223,111320.0,111310.0,0.00213317]
[1761299714653,0.17970223,111320.0,111310.0,0.16005317]
[1761299719736,0.17970223,111320.0,111310.0,0.00213317]
[1761299720157,0.21563851,111320.0,111310.0,0.16001317]
[1761299721922,0.21563851,111320.0,111310.0,0.00213317]
[1761299722121,0.21563851,111320.0,111310.0,0.16001317]
[1761299723494,0.21563851,111320.0,111310.0,0.16005317]
[1761299723700,0.52228442,111320.0,111310.0,0.16005317]
[1761299724467,0.3416398,111320.0,111310.0,0.00213317]
[1761299724676,0.98828571,111320.0,111310.0,0.00213317]
[1761299725688,0.98828571,111320.0,111310.0,0.00113317]
[1761299726117,1.01525373,111320.0,111310.0,0.00113317]
[1761299727248,1.01725373,111320.0,111310.0,0.00113317]
[1761299727445,1.03662255,111320.0,111310.0,0.00113317]
[1761299729223,0.8625227,111300.0,111290.0,0.0004]
[1761299729528,1.20020072,111300.0,111290.0,0.00088371]
[1761299729683,0.89355481,111300.0,111290.0,0.00088371]
[1761299729869,1.20020072,111300.0,111290.0,0.00088371]
[1761299730071,0.73551481,111300.0,111290.0,0.00088371]
[1761299730274,0.89455481,111300.0,111290.0,0.00088371]
[1761299730478,0.89815128,111300.0,111290.0,0.00088371]
[1761299730912,0.89815128,111300.0,111290.0,0.00188371]
[1761299732410,0.89815128,111300.0,111290.0,0.00088371]
[1761299732652,0.89915128,111300.0,111290.0,0.00088371]
[1761299734908,0.74111128,111300.0,111290.0,0.00088371]
[1761299735070,0.80933227,111300.0,111290.0,0.00156055]
[1761299735641,1.11597818,111300.0,111290.0,0.00156055]
[1761299736525,0.80933227,111300.0,111290.0,0.00156055]
[1761299737110,1.11597818,111300.0,111290.0,0.00156055]
[1761299737340,1.20579719,111300.0,111290.0,0.00156055]
[1761299737814,1.04775719,111300.0,111290.0,0.00156055]
[1761299738138,1.20579719,111300.0,111290.0,0.00156055]
[1761299739034,0.89915128,111300.0,111290.0,0.00156055]
[1761299739252,1.20579719,111300.0,111290.0,0.00156055]
[1761299740344,0.89915128,111300.0,111290.0,0.00156055]
[1761299740906,1.20579719,111300.0,111290.0,0.00156055]
[1761299741370,0.74111128,111300.0,111290.0,0.00156055]
[1761299741572,0.89919128,111300.0,111290.0,0.00156055]
[1761299741761,0.74111128,111300.0,111290.0,0.00156055]
[1761299741922,0.89919128,111300.0,111290.0,0.00156055]
[1761299742559,0.65129227,111300.0,111290.0,0.00156055]
[1761299742769,0.80941227,111300.0,111290.0,0.00156055]
[1761299744058,0.71959326,111300.0,111290.0,0.00156055]
[1761299745179,0.52529098,111300.0,111290.0,0.30820646]
[1761299745418,0.52529098,111300.0,111290.0,0.00156055]
[1761299745629,0.61510999,111300.0,111290.0,0.00156055]
[1761299749998,0.52169451,111300.0,111290.0,0.30820646]
[1761299750455,0.18169451,111300.0,111290.0,0.48791712]
[1761299751488,0.18169451,111300.0,111290.0,0.18127121]
[1761299753718,0.18169451,111300.0,111290.0,0.00156055]
[1761299754742,0.18169451,111300.0,111290.0,0.30837475]
[1761299754942,0.24254326,111300.0,111290.0,0.30837475]
[1761299755344,0.24254326,111300.0,111290.0,0.00156055]
[1761299759005,0.18169451,111300.0,111290.0,0.30837475]
[1761299762051,0.18169451,111300.0,111290.0,0.00156055]
[1761299762291,0.18169451,111300.0,111290.0,0.30837475]
[1761299762705,0.18169451,111300.0,111290.0,0.00156055]
[1761299774928,0.52169451,111300.0,111290.0,0.00156055]
[1761299775122,0.61151352,111300.0,111290.0,0.00156055]
[1761299778619,0.91832772,111300.0,111290.0,0.00156055]
[1761299778821,1.20224901,111300.0,111290.0,0.00156055]
[1761299784135,0.89543481,111300.0,111290.0,0.00156055]
[1761299793371,1.20224901,111300.0,111290.0,0.00156055]
[1761299795146,1.04432901,111300.0,111290.0,0.00156055]
[1761299795332,1.20220901,111300.0,111290.0,0.00156055]
[1761299795695,0.89539481,111300.0,111290.0,0.00156055]
[1761299795910,0.8055758,111300.0,111290.0,0.00156055]
[1761299797391,0.6476958,111300.0,111290.0,0.00156055]
[1761299797612,0.8055758,111300.0,111290.0,0.00156055]
[1761299797812,0.6476958,111300.0,111290.0,0.00156055]
[1761299798025,0.8055758,111300.0,111290.0,0.00156055]
[1761299798243,0.89539481,111300.0,111290.0,0.00156055]
[1761299803177,0.73751481,111300.0,111290.0,0.00156055]
[1761299803378,0.89539481,111300.0,111290.0,0.00156055]
[1761299805073,0.73751481,111300.0,111290.0,0.00156055]
[1761299805285,0.89539481,111300.0,111290.0,0.00156055]
[1761299805481,0.73751481,111300.0,111290.0,0.00156055]
[1761299805686,0.89539481,111300.0,111290.0,0.00156055]
[1761299806472,0.73751481,111300.0,111290.0,0.00156055]
[1761299806702,0.89539481,111300.0,111290.0,0.00156055]
[1761299809377,0.8055758,111300.0,111290.0,0.00156055]
[1761299811870,0.6476958,111300.0,111290.0,0.00156055]
[1761299812077,0.8055758,111300.0,111290.0,0.00156055]
[1761299813601,1.11239,111300.0,111290.0,0.00156055]
[1761299813782,1.13178004,111300.0,111290.0,0.00156055]
[1761299813995,1.22159905,111300.0,111290.0,0.00156055]
[1761299814471,0.91478485,111300.0,111290.0,0.00156055]
[1761299814685,1.22159905,111300.0,111290.0,0.00156055]
[1761299814891,0.91478485,111300.0,111290.0,0.00156055]
[1761299817546,1.22166949,111300.0,111290.0,0.00156055]
[1761299817932,0.91478485,111300.0,111290.0,0.00156055]
[1761299818363,0.94175799,111300.0,111290.0,0.00156055]
[1761299819549,1.24864263,111300.0,111290.0,0.00156055]
[1761299822675,1.58976562,111300.0,111290.0,0.00156055]
[1761299823236,1.59976561,111300.0,111290.0,0.00156055]
[1761299823440,1.58876562,111300.0,111290.0,0.00156055]
[1761299823759,1.59976561,111300.0,111290.0,0.00156055]
[1761299824549,1.59876561,111300.0,111290.0,0.00156055]
[1761299824966,1.60076561,111300.0,111290.0,0.00156055]
[1761299825195,1.29388097,111300.0,111290.0,0.00156055]
[1761299825374,1.60076561,111300.0,111290.0,0.00156055]
[1761299828441,1.58564458,111300.0,111290.0,0.00156055]
[1761299828648,1.60988294,111300.0,111290.0,0.00156055]
[1761299830845,0.4865953,111290.0,111280.0,0.0004]
[1761299831054,0.74310336,111290.0,111280.0,0.0004]
[1761299831617,0.74670048,111290.0,111280.0,0.0004]
[1761299836288,0.30930907,111290.0,111280.0,0.0004]
[1761299836530,0.46718907,111290.0,111280.0,0.00073848]
[1761299841062,0.46708907,111290.0,111280.0,0.00073848]
[1761299844362,0.27302679,111290.0,111280.0,0.00073848]
[1761299844548,0.34108778,111290.0,111280.0,0.00073848]
[1761299844786,0.43090679,111290.0,111280.0,0.00073848]
[1761299846572,0.77090679,111290.0,111280.0,0.00073848]
[1761299848910,0.61302679,111290.0,111280.0,0.00073848]
[1761299850179,0.61302679,111290.0,111280.0,0.66320261]
[1761299850180,0.00359712,111290.0,111280.0,0.66320261]
[1761299850396,0.17969647,111300.0,111290.0,0.2]
[1761299850606,0.17969647,111300.0,111290.0,0.6865953]
[1761299851280,0.17969647,111300.0,111290.0,0.71356451]
[1761299851705,0.17969647,111300.0,111290.0,0.71556451]
[1761299857824,0.17969451,111300.0,111290.0,0.71556451]
[1761299863492,0.17969451,111300.0,111290.0,0.53585385]
[1761299866274,0.2192285,111300.0,111290.0,0.22896921]
[1761299866427,0.2192285,111300.0,111290.0,0.44428921]
[1761299866642,0.2192285,111300.0,111290.0,0.24428921]
[1761299869324,0.2192285,111300.0,111290.0,0.24428921]
[1761299878215,0.2192285,111300.0,111290.0,0.21732]
[1761299886776,0.2192285,111300.0,111290.0,0.52413705]
[1761299888288,0.2192285,111300.0,111290.0,0.21732]
[1761299894920,0.2192285,111300.0,111290.0,0.52413705]
[1761299895176,0.2192285,111300.0,111290.0,0.21732]
[1761299914387,0.2192285,111300.0,111290.0,0.72413705]
[1761299914737,0.2192285,111300.0,111290.0,0.90384771]
[1761299915150,0.2192285,111300.0,111290.0,0.72413705]
[1761299916100,0.2192285,111300.0,111290.0,0.90384771]
[1761299917063,0.17969451,111300.0,111290.0,0.90384771]
[1761299919901,0.18868534,111320.0,111310.0,0.2]
[1761299920102,0.18868534,111320.0,111310.0,0.66461705]
[1761299920103,0.18916905,111320.0,111310.0,0.66461705]
[1761299922641,0.18916905,111320.0,111310.0,0.84429542]
[1761299922845,0.18916905,111320.0,111310.0,0.66461705]
[1761299925605,0.18916905,111320.0,111310.0,0.84429542]
[1761299926597,0.18916905,111320.0,111310.0,0.85307687]
[1761299926804,0.18916905,111320.0,111310.0,0.66461705]
[1761299927206,0.18916905,111320.0,111310.0,0.84429542]
[1761299927578,0.18916905,111320.0,111310.0,0.84425542]
[1761299927810,0.18916905,111320.0,111310.0,0.90173542]
[1761299931311,0.18916905,111320.0,111310.0,0.59491837]
[1761299931570,0.18916905,111320.0,111310.0,0.90173542]
[1761299935745,0.18916905,111320.0,111310.0,0.59491837]
[1761299936003,0.18916905,111320.0,111310.0,0.90173542]
[1761299936739,0.18916905,111320.0,111310.0,0.59491837]
[1761299939529,0.18916905,111320.0,111310.0,0.90161057]
[1761299943017,0.18810157,111320.0,111310.0,0.90161057]
[1761299943226,0.18810157,111320.0,111310.0,0.70161057]
[1761299943426,0.00048371,111320.0,111310.0,0.70161057]
[1761299943580,0.18014594,111320.0,111310.0,0.70161057]
[1761299945619,0.00048371,111320.0,111310.0,0.70161057]
[1761299945828,0.00048371,111320.0,111310.0,0.90161057]
[1761299946942,0.02744594,111320.0,111310.0,0.90161057]
[1761299952570,0.02744594,111320.0,111310.0,0.99142958]
[1761299952776,0.00048371,111320.0,111310.0,0.99142958]
[1761299952936,0.00048371,111320.0,111310.0,1.33142958]
[1761299953953,0.00048371,111320.0,111310.0,1.33242958]
[1761299954367,0.00048371,111320.0,111310.0,1.39662891]
[1761299955363,0.00048371,111320.0,111310.0,1.33242958]
[1761299957177,0.00048371,111320.0,111310.0,1.43281119]
[1761299957879,0.00048371,111320.0,111310.0,1.45976722]
[1761299959444,0.00048371,111320.0,111310.0,1.35938561]
[1761299960732,0.00048371,111320.0,111310.0,1.33234958]
[1761299961178,0.00048371,111320.0,111310.0,1.27490958]
[1761299961393,0.00048371,111320.0,111310.0,1.11718958]
[1761299961795,0.00048371,111320.0,111310.0,1.33234958]
[1761299964225,0.00048371,111320.0,111310.0,1.11718958]
[1761299964451,0.00048371,111320.0,111310.0,1.33234958]
[1761299968003,0.00048371,111320.0,111310.0,1.11718958]
[1761299968134,0.00048371,111320.0,111310.0,1.33234958]
[1761299969641,0.00048371,111320.0,111310.0,1.02565738]
[1761299978520,0.00048371,111320.0,111310.0,0.81049738]
[1761299978732,0.00048371,111320.0,111310.0,1.02561738]
[1761299981951,0.00048371,111320.0,111310.0,0.68561738]
[1761299982162,0.18014594,111320.0,111310.0,0.68561738]
[1761299984923,0.00048371,111320.0,111310.0,0.68561738]
[1761299991659,0.00048371,111320.0,111310.0,0.72179966]
[1761300000914,0.00048371,111320.0,111310.0,0.47049738]
[1761300001118,0.18014594,111320.0,111310.0,0.68561738]
[1761300003170,0.00048371,111320.0,111310.0,0.47049738]
[1761300003360,0.00048371,111320.0,111310.0,0.68561738]
[1761300006724,0.02744417,111320.0,111310.0,0.68561738]
[1761300025321,0.2071064,111320.0,111310.0,0.68561738]
[1761300027879,0.2071064,111320.0,111310.0,0.001]
[1761300028100,0.2071064,111320.0,111310.0,0.21608]
[1761300028282,0.2071064,111320.0,111310.0,0.59575837]
[1761300033613,0.02744417,111320.0,111310.0,0.59575837]
[1761300033820,0.02744417,111320.0,111310.0,0.68557738]
[1761300035311,0.2071064,111320.0,111310.0,0.68557738]
[1761300036122,0.02744417,111320.0,111310.0,0.68557738]
[1761300041178,0.2071064,111320.0,111310.0,0.62813738]
[1761300041386,0.2071064,111320.0,111310.0,0.68557738]
[1761300044449,0.2071064,111320.0,111310.0,0.52793738]
[1761300044677,0.2071064,111320.0,111310.0,0.35864]
[1761300044900,0.2071064,111320.0,111310.0,0.41608]
[1761300046245,0.2071064,111320.0,111310.0,0.201]
[1761300046462,0.2071064,111320.0,111310.0,0.21608]
[1761300048429,0.2071064,111320.0,111310.0,0.15864]
[1761300048656,0.2071064,111320.0,111310.0,0.21608]
[1761300051612,0.2071064,111320.0,111310.0,0.001]
[1761300051824,0.2071064,111320.0,111310.0,0.15864]
[1761300052034,0.2071064,111320.0,111310.0,0.21608]
[1761300052950,0.2071064,111320.0,111310.0,0.001]
[1761300053152,0.2071064,111320.0,111310.0,0.21608]
[1761300056274,0.2071064,111320.0,111310.0,0.41608]
[1761300058157,0.2071064,111320.0,111310.0,0.59575837]
[1761300058542,0.2071064,111320.0,111310.0,0.41608]
[1761300062706,0.2071064,111320.0,111310.0,0.21608]
[1761300065301,0.24578191,111320.0,111310.0,0.001]
[1761300065501,0.24578191,111320.0,111310.0,0.15864]
[1761300067192,0.24578191,111320.0,111310.0,0.001]
[1761300067406,0.24578191,111320.0,111310.0,0.15864]
[1761300068249,0.24578191,111320.0,111310.0,0.001]
[1761300068469,0.17969451,111300.0,111290.0,0.25744]
[1761300068659,0.17969451,111300.0,111290.0,0.41508]
[1761300069470,0.17971066,111290.0,111280.0,0.0095399]
[1761300069668,0.17971066,111290.0,111280.0,0.05817848]
[1761300069880,0.17971066,111290.0,111280.0,0.21581848]
[1761300070277,0.20668084,111290.0,111280.0,0.21581848]
[1761300070682,0.17971066,111290.0,111280.0,0.31477635]
[1761300070876,0.17971066,111290.0,111280.0,0.49450316]
[1761300071495,0.17971066,111290.0,111280.0,0.31577635]
[1761300071884,0.17971066,111290.0,111280.0,0.30867749]
[1761300072708,0.17971066,111290.0,111280.0,0.30871749]
[1761300074025,0.17971066,111290.0,111280.0,0.09355749]
[1761300074221,0.21834805,111290.0,111280.0,0.06121848]
[1761300074433,0.17971066,111290.0,111280.0,0.21889848]
[1761300075198,0.17971066,111290.0,111280.0,0.21789848]
[1761300075642,0.2066819,111290.0,111280.0,0.21589848]
[1761300075845,0.2066819,111290.0,111280.0,0.21689848]
[1761300080031,0.17971066,111290.0,111280.0,0.21689848]
[1761300081363,0.17971066,111290.0,111280.0,0.39662529]
[1761300083320,0.17971066,111290.0,111280.0,0.21689848]
[1761300086604,0.17971066,111290.0,111280.0,0.39662529]
[1761300086816,0.17971066,111290.0,111280.0,0.21689848]
[1761300094357,0.17971066,111290.0,111280.0,0.00173848]
[1761300094596,0.17971066,111290.0,111280.0,0.21689848]
[1761300094807,0.20668174,111290.0,111280.0,0.21689848]
[1761300098476,0.20668174,111290.0,111280.0,0.15941848]
[1761300098681,0.20668174,111290.0,111280.0,0.21689848]
[1761300099896,0.20668174,111290.0,111280.0,0.00173848]
[1761300100344,0.20668174,111290.0,111280.0,0.21689848]
[1761300116922,0.20668174,111290.0,111280.0,0.39662529]
[1761300118105,0.17969451,111300.0,111280.0,0.6864443]
[1761300118312,0.20666251,111300.0,111290.0,0.01797106]
[1761300119084,0.17969451,111300.0,111290.0,0.01797106]
[1761300121691,0.17969451,111300.0,111290.0,0.23313106]
[1761300121907,0.17969451,111300.0,111290.0,0.21516]
[1761300122325,0.17971066,111290.0,111280.0,0.4702843]
[1761300122565,0.17971066,111290.0,111280.0,0.50571749]
[1761300122777,0.17971066,111290.0,111280.0,0.4702843]
[1761300123049,0.17971066,111290.0,111280.0,0.6854443]
[1761300123872,0.17971066,111290.0,111280.0,0.6864443]
[1761300124904,0.17969451,111300.0,111280.0,0.6289643]
[1761300125123,0.17969451,111300.0,111280.0,0.6864443]
[1761300125792,0.17969451,111300.0,111290.0,0.01797106]
[1761300126385,0.17971066,111290.0,111280.0,0.68544401]
[1761300126586,0.17971066,111290.0,111280.0,0.68644401]
[1761300126788,0.17971066,111290.0,111280.0,0.68544401]
[1761300127664,0.17971066,111290.0,111280.0,0.68644401]
[1761300129350,0.17971066,111290.0,111280.0,0.47128401]
[1761300129884,0.17971066,111290.0,111280.0,0.68644401]
[1761300132323,0.17971066,111290.0,111280.0,0.47128401]
[1761300132519,0.17971066,111290.0,111280.0,0.35941848]
[1761300132987,0.17971066,111290.0,111280.0,0.41689848]
[1761300133756,0.17971066,111290.0,111280.0,0.59662529]
[1761300135029,0.17971066,111290.0,111280.0,0.38146529]
[1761300135253,0.17971066,111290.0,111280.0,0.59662529]
[1761300137193,0.17971066,111290.0,111280.0,0.38146529]
[1761300137397,0.17971066,111290.0,111280.0,0.59662529]
[1761300144190,0.17969451,111300.0,111280.0,0.6864443]
[1761300144403,0.17971066,111290.0,111280.0,0.6864443]
[1761300145227,0.17969451,111300.0,111280.0,0.6864443]
[1761300145668,0.17971066,111290.0,111280.0,0.6864443]
[1761300146173,0.17971066,111290.0,111280.0,0.4712843]
[1761300146381,0.17971066,111290.0,111280.0,0.6854443]
[1761300146581,0.17969451,111300.0,111280.0,0.6854443]
[1761300146790,0.17969451,111300.0,111280.0,0.6864443]
[1761300147657,0.17969451,111300.0,111290.0,0.17971066]
[1761300147843,0.17969451,111300.0,111280.0,0.6864443]
[1761300148134,0.17969451,111300.0,111280.0,0.6854443]
[1761300148341,0.17969451,111300.0,111280.0,0.6864443]
[1761300148641,0.17971066,111290.0,111280.0,0.6864443]
[1761300148820,0.17971066,111290.0,111280.0,0.6854443]
[1761300149021,0.17971066,111290.0,111280.0,0.6864443]
[1761300149944,0.17971066,111290.0,111280.0,0.6854443]
[1761300151106,0.17971066,111290.0,111280.0,0.6279643]
[1761300151308,0.17971066,111290.0,111280.0,0.6854443]
[1761300151443,0.17971066,111290.0,111280.0,0.6864443]
[1761300158100,0.17971066,111290.0,111280.0,0.20173848]
[1761300158304,0.17971066,111290.0,111280.0,0.59662529]
[1761300159346,0.17971066,111290.0,111280.0,0.53914529]
[1761300159553,0.17971066,111290.0,111280.0,0.59662529]
[1761300159916,0.17971066,111290.0,111280.0,0.20173848]
[1761300160121,0.17971066,111290.0,111280.0,0.59662529]
[1761300161100,0.17971066,111290.0,111280.0,0.53914529]
[1761300161332,0.17971066,111290.0,111280.0,0.38146529]
[1761300161532,0.17971066,111290.0,111280.0,0.59662529]
[1761300163500,0.21565118,111290.0,111280.0,0.59662529]
[1761300164101,0.17971066,111290.0,111280.0,0.59662529]
[1761300165383,0.17971066,111290.0,111280.0,0.41689848]
[1761300165553,0.17971066,111290.0,111280.0,0.59662529]
[1761300165755,0.17971066,111290.0,111280.0,0.41689848]
[1761300166189,0.17971066,111290.0,111280.0,0.15941848]
[1761300166392,0.17971066,111290.0,111280.0,0.21689848]
[1761300168293,0.21565118,111290.0,111280.0,0.00173848]
[1761300168498,0.21565118,111290.0,111280.0,0.15941848]
[1761300169929,0.21565118,111290.0,111280.0,0.00173848]
[1761300170155,0.21565118,111290.0,111280.0,0.15941848]
[1761300170780,0.17971066,111290.0,111280.0,0.15941848]
[1761300171357,0.17971066,111290.0,111280.0,0.00173848]
[1761300171580,0.17971066,111290.0,111280.0,0.21689848]
[1761300179544,0.17971066,111290.0,111280.0,0.41689848]
[1761300180392,0.17971066,111290.0,111280.0,0.21689848]
[1761300186722,0.20668203,111290.0,111280.0,0.21689848]
[1761300188602,0.20668203,111290.0,111280.0,0.41689848]
[1761300190424,0.20668203,111290.0,111280.0,0.59662529]
[1761300191142,0.20668203,111290.0,111280.0,0.41689848]
[1761300191782,0.20668203,111290.0,111280.0,0.59662529]
[1761300193168,0.17969451,111300.0,111280.0,0.59662529]
[1761300193610,0.20666454,111300.0,111280.0,0.59662529]
[1761300194033,0.17969451,111300.0,111290.0,0.17971066]
[1761300194235,0.17969451,111300.0,111280.0,0.6864443]
[1761300194434,0.17969451,111300.0,111290.0,0.17971066]
[1761300195285,0.17969451,111300.0,111290.0,0.33739066]
[1761300195506,0.17969451,111300.0,111290.0,0.39487066]
[1761300197163,0.17969451,111300.0,111290.0,0.17971066]
[1761300197399,0.2192284,111300.0,111290.0,0.39487066]
[1761300197638,0.17969451,111300.0,111290.0,0.39487066]
[1761300201578,0.17969451,111300.0,111290.0,0.33739066]
[1761300201799,0.17969451,111300.0,111290.0,0.39487066]
[1761300202017,0.17969451,111300.0,111290.0,0.21516]
[1761300202229,0.17969451,111300.0,111290.0,0.39487066]
[1761300202448,0.2192284,111300.0,111290.0,0.39487066]
[1761300202668,0.2192284,111300.0,111290.0,0.21516]
[1761300202878,0.2192284,111300.0,111290.0,0.39487066]
[1761300203096,0.2192284,111300.0,111290.0,0.21516]
[1761300203310,0.2192284,111300.0,111290.0,0.39487066]
[1761300204714,0.2192284,111300.0,111290.0,0.21516]
[1761300205086,0.2192284,111300.0,111290.0,0.39487066]
[1761300205286,0.2192284,111300.0,111290.0,0.21516]